bitfinex-derivatives/quotes_ETHF0:USTF0_20210407
["timestamp","ask_amount","ask_price","bid_price","bid_amount"]
[1617824572369,2.4833,1965.1,1964.2,84.2169]
[1617824573070,2.4833,1965.1,1964.3,6.14]
[1617824573770,2.4833,1965.1,1964.4,2.90695]
[1617824574069,2.4833,1965.1,1964.5,6.32]
[1617824575770,2.90695,1964.6,1964.5,6.32]
[1617824577070,2.90695,1964.6,1964.4,2.90695]
[1617824577772,2.90695,1964.6,1964.2,2.90695]
[1617824578675,32.90695,1964.6,1962.3,3.0188]
[1617824578873,32.90695,1964.6,1962.4,78.366]
[1617824578874,60.9482,1964.1,1962.4,78.366]
[1617824579578,60.9482,1964.1,1962.5,6.39]
[1617824579777,60.9482,1964.1,1963.5,2.90695]
[1617824580179,60.9482,1964.1,1963.6,6.27]
[1617824580480,58.473,1964.1,1963.6,6.27]
[1617824580684,12.9825,1964.5,1963.6,6.27]
[1617824581882,12.9825,1964.5,1964.0,2.90695]
[1617824582082,12.9825,1964.5,1964.0,5.47265]
[1617824582279,12.9825,1964.5,1964.1,6.2]
[1617824583582,12.9825,1964.5,1964.1,71.1137]
[1617824583982,12.9825,1964.5,1964.4,4.77885]
[1617824584382,60.632,1965.6,1964.4,11.07885]
[1617824585183,60.632,1965.6,1964.4,41.07885]
[1617824585383,60.632,1965.6,1964.4,42.09965]
[1617824585584,60.632,1965.6,1964.5,2.0]
[1617824585785,60.632,1965.6,1964.5,32.0]
[1617824585984,63.53895,1965.6,1965.5,5.41935]
[1617824586287,2.90695,1965.6,1965.5,11.58935]
[1617824587790,2.90695,1965.6,1965.5,5.41935]
[1617824588094,2.90695,1965.6,1965.5,11.52935]
[1617824591710,13.4967,1966.3,1965.5,11.52935]
[1617824591990,13.4967,1966.3,1966.2,2.90695]
[1617824592193,13.4967,1966.3,1966.2,5.82965]
[1617824592491,13.4967,1966.3,1966.2,12.15965]
[1617824592990,13.4967,1966.3,1966.2,9.2527]
[1617824594094,16.40365,1966.3,1966.2,12.15965]
[1617824595696,16.40365,1966.3,1966.2,13.17255]
[1617824596195,13.4967,1966.3,1966.2,12.15965]
[1617824597396,2.90695,1966.5,1966.2,12.15965]
[1617824597796,2.90695,1966.5,1966.2,12.14975]
[1617824597999,2.90695,1966.7,1966.4,2.90695]
[1617824598396,2.90695,1966.7,1966.5,6.29]
[1617824599697,13.3001,1967.5,1966.5,6.29]
[1617824600098,13.3001,1967.5,1967.4,5.08385]
[1617824600499,13.3001,1967.5,1967.4,11.39385]
[1617824601000,2.571,1968.3,1967.4,11.39385]
[1617824601200,3.28618138,1969.1,1967.4,11.39385]
[1617824601401,12.9726,1969.0,1967.4,11.39385]
[1617824602101,12.9726,1969.0,1968.6,2.90695]
[1617824602399,2.0,1968.9,1968.6,2.7459]
[1617824602606,12.9726,1969.0,1968.6,2.7459]
[1617824604205,2.90695,1968.7,1968.6,2.7459]
[1617824606003,2.90695,1968.7,1968.6,11.90285]
[1617824606602,2.90695,1968.7,1968.6,8.9959]
[1617824606806,2.90695,1968.7,1968.6,2.7459]
[1617824607003,2.90695,1968.7,1967.9,2.7178]
[1617824607505,2.90695,1968.7,1967.4,2.1769]
[1617824607705,2.90695,1968.7,1967.0,32.0]
[1617824607905,2.90695,1968.7,1967.5,6.25]
[1617824608107,12.9726,1969.0,1968.4,2.90695]
[1617824608605,12.9726,1969.0,1968.5,6.3]
[1617824609408,18.0145,1969.0,1966.5,2.0]
[1617824609808,18.5855,1969.0,1964.5,1.1]
[1617824610008,18.5855,1969.0,1966.6,6.11]
[1617824610206,48.5855,1969.0,1966.6,6.11]
[1617824610408,48.5855,1969.0,1965.7,6.18]
[1617824610608,48.5855,1969.0,1966.7,6.3]
[1617824610807,18.5855,1969.0,1966.7,6.3]
[1617824611008,2.0,1968.9,1965.7,36.26]
[1617824611307,32.0,1968.9,1966.8,6.16]
[1617824611508,32.0,1968.9,1966.7,6.21]
[1617824611808,2.0,1968.9,1966.9,0.62]
[1617824612009,18.5855,1969.0,1966.9,0.62]
[1617824612209,15.5436,1969.0,1967.5,2.90695]
[1617824612408,15.5436,1969.0,1967.6,3.77]
[1617824613809,12.9726,1969.0,1967.6,3.77]
[1617824614309,12.9726,1969.0,1967.9,2.90695]
[1617824614511,12.9726,1969.0,1968.0,6.27]
[1617824614820,12.9726,1969.0,1968.0,8.7915]
[1617824616313,12.9726,1969.0,1968.5,4.79555]
[1617824616513,12.9726,1969.0,1968.6,6.17]
[1617824617715,12.9726,1969.0,1968.5,2.90695]
[1617824618216,12.9726,1969.0,1968.6,8.4837]
[1617824620117,2.90695,1968.7,1968.6,8.4837]
[1617824621723,12.9726,1969.0,1968.6,8.4837]
[1617824622122,12.9726,1969.0,1968.9,2.90695]
[1617824622722,12.9726,1969.0,1968.9,9.09695]
[1617824623122,2.90695,1969.1,1968.9,9.09695]
[1617824623523,26.4617,1970.6,1968.9,9.09695]
[1617824623823,26.4617,1970.6,1969.4,80.7433]
[1617824624024,26.4617,1970.6,1969.4,84.5834]
[1617824624224,2.90695,1969.5,1969.4,86.47695]
[1617824624724,2.90695,1969.5,1969.4,92.81695]
[1617824625027,2.90695,1969.5,1969.4,12.07365]
[1617824625425,2.90695,1969.5,1969.4,85.95115]
[1617824625825,26.4617,1970.6,1969.4,86.96795]
[1617824626125,26.4617,1970.6,1970.0,2.90695]
[1617824626326,26.4617,1970.6,1970.0,4.79535]
[1617824626526,26.4617,1970.6,1970.1,67.6194]
[1617824626726,26.4617,1970.6,1970.1,73.8494]
[1617824627229,75.0522,1971.6,1970.1,73.8494]
[1617824627427,2.571,1971.6,1970.1,6.23]
[1617824627631,2.571,1971.6,1970.8,70.4123]
[1617824627827,27.2485,1972.2,1970.8,72.4982]
[1617824628031,80.5991,1971.7,1970.9,6.37]
[1617824628231,2.90695,1971.0,1970.9,6.37]
[1617824628428,2.90695,1971.0,1969.9,1.0018]
[1617824628628,4.90305,1971.0,1969.8,67.5356]
[1617824629129,4.90305,1971.0,1969.9,6.25]
[1617824629730,2.90695,1971.0,1969.9,6.25]
[1617824630233,80.5991,1971.7,1970.3,2.90695]
[1617824630432,27.2485,1972.2,1970.3,2.90695]
[1617824630632,27.2485,1972.2,1970.7,68.4116]
[1617824630832,27.2485,1972.2,1970.7,71.497]
[1617824631236,27.2485,1972.2,1970.8,6.34]
[1617824632237,27.2485,1972.2,1970.9,2.90695]
[1617824632840,27.2485,1972.2,1971.0,6.1]
[1617824634236,2.90695,1971.1,1971.0,6.1]
[1617824635838,2.90695,1971.1,1970.9,2.90695]
[1617824635839,5.90165,1971.1,1970.9,2.90695]
[1617824636139,5.90165,1971.1,1970.6,78.2304]
[1617824636440,4.93845,1970.7,1970.6,78.2304]
[1617824636842,4.93845,1970.7,1970.6,84.3604]
[1617824637439,4.93845,1970.7,1970.6,6.13]
[1617824637640,4.93845,1970.7,1969.4,67.4747]
[1617824638241,2.0315,1970.7,1970.0,2.90695]
[1617824638740,2.0315,1970.7,1970.1,6.28]
[1617824638940,78.6652,1970.9,1970.1,6.28]
[1617824639943,78.6652,1970.9,1970.1,9.1058]
[1617824640441,12.9564,1971.4,1970.4,2.90695]
[1617824640841,78.1812,1971.3,1970.5,8.1934]
[1617824641444,108.1812,1971.3,1970.5,8.1934]
[1617824641644,108.1812,1971.3,1970.5,2.0534]
[1617824642049,108.1812,1971.3,1969.5,63.6056]
[1617824642249,2.0,1971.2,1970.0,2.90695]
[1617824642550,2.0,1971.0,1970.0,2.90695]
[1617824642749,2.0,1971.0,1970.1,6.26]
[1617824644351,32.0,1971.0,1969.5,63.6056]
[1617824644651,34.0985,1971.0,1969.5,63.6056]
[1617824646252,2.90695,1969.6,1969.5,63.6056]
[1617824646453,2.90695,1969.6,1969.3,2.90695]
[1617824646954,2.90695,1969.6,1969.5,6.14]
[1617824647152,2.90695,1969.6,1969.4,6.33]
[1617824647352,2.90695,1969.6,1969.3,2.90695]
[1617824647754,2.90695,1969.6,1969.4,6.11]
[1617824648356,2.90695,1969.6,1969.5,2.90695]
[1617824649155,2.90695,1969.6,1969.5,9.28695]
[1617824649356,2.90695,1969.6,1969.5,6.38]
[1617824649656,2.90695,1969.6,1969.0,6.36]
[1617824650359,104.9024,1970.3,1969.3,2.90695]
[1617824650761,104.9024,1970.3,1969.4,6.22]
[1617824652060,4.7389,1970.2,1969.3,2.90695]
[1617824652359,2.90695,1969.4,1967.6,30.0]
[1617824652561,71.196,1969.3,1967.8,57.9048]
[1617824652760,30.0,1969.2,1967.8,57.9048]
[1617824653160,30.0,1969.2,1967.9,6.33]
[1617824653662,30.0,1969.2,1966.9,2.0]
[1617824653861,83.1896,1968.5,1966.9,2.0]
[1617824654163,83.1896,1968.5,1965.0,1.0311]
[1617824654164,2.5006,1968.5,1965.0,1.0311]
[1617824654362,2.5006,1968.5,1968.4,2.90695]
[1617824654764,2.5006,1968.5,1968.4,9.19695]
[1617824654962,30.0,1969.3,1968.4,6.29]
[1617824655463,31.8701,1969.3,1967.6,6.35]
[1617824655663,31.8701,1969.3,1968.5,6.16]
[1617824656070,31.8701,1969.3,1967.6,6.18]
[1617824656363,2.0,1969.2,1968.3,2.90695]
[1617824656566,32.0,1969.2,1968.3,2.90695]
[1617824657367,30.0,1969.2,1968.3,2.90695]
[1617824657769,30.0,1969.2,1968.4,6.33]
[1617824658172,30.0,1969.2,1968.3,2.90695]
[1617824658370,2.90695,1968.6,1968.3,2.90695]
[1617824659070,35.72665,1968.6,1966.4,30.0]
[1617824659270,35.72665,1968.6,1958.0,11.96776]
[1617824659271,57.458,1968.1,1966.3,30.0]
[1617824659569,57.458,1968.1,1966.3,32.0]
[1617824659570,59.8289,1968.1,1966.3,32.0]
[1617824659770,59.8289,1968.1,1966.8,6.39]
[1617824659970,59.8289,1968.1,1966.4,6.34]
[1617824660171,59.8289,1968.1,1966.3,32.0]
[1617824660370,59.8289,1968.1,1967.6,2.90695]
[1617824662173,57.458,1968.1,1967.6,2.90695]
[1617824662373,57.458,1968.1,1967.8,2.90695]
[1617824662672,27.377,1968.5,1967.8,2.90695]
[1617824662873,27.377,1968.5,1967.9,6.28]
[1617824664573,2.90695,1968.0,1967.9,6.28]
[1617824665176,2.90695,1968.0,1967.8,2.90695]
[1617824665376,2.90695,1968.0,1966.2,2.0217]
[1617824665577,82.3044,1967.8,1966.3,74.7834]
[1617824666177,82.3044,1967.8,1966.4,6.22]
[1617824666578,82.3044,1967.8,1967.2,2.90695]
[1617824668479,82.3044,1967.8,1967.4,2.90695]
[1617824668883,27.377,1968.5,1967.4,5.80885]
[1617824669184,27.377,1968.5,1967.5,6.23]
[1617824670482,27.377,1968.5,1967.8,5.63725]
[1617824670982,27.377,1968.5,1967.9,6.24]
[1617824672685,2.90695,1968.0,1967.9,6.24]
[1617824675792,27.377,1968.5,1967.9,6.24]
[1617824676091,27.377,1968.5,1967.9,9.2868]
[1617824676792,27.377,1968.5,1968.3,2.90695]
[1617824676996,27.377,1968.5,1968.3,5.89425]
[1617824677193,27.377,1968.5,1968.4,6.29]
[1617824678599,27.377,1968.5,1968.3,5.89425]
[1617824678794,2.90695,1968.4,1968.3,5.89425]
[1617824679194,2.90695,1968.4,1968.3,12.27425]
[1617824679397,2.90695,1968.4,1968.3,9.3673]
[1617824680896,2.90695,1968.4,1968.3,12.27425]
[1617824681297,27.377,1968.5,1968.3,12.27425]
[1617824682101,68.6933,1969.8,1968.4,75.3186]
[1617824682300,13.5678,1970.9,1968.4,30.0]
[1617824682601,13.0777,1970.1,1968.9,63.5231]
[1617824682800,13.0777,1970.1,1969.8,2.90695]
[1617824683100,13.0777,1970.1,1969.8,5.38425]
[1617824683304,13.0777,1970.1,1969.9,6.16]
[1617824684801,2.90695,1970.0,1969.9,6.16]
[1617824686404,13.0777,1970.1,1969.9,6.16]
[1617824686606,13.0777,1970.1,1970.0,58.1199]
[1617824686806,13.0777,1970.1,1970.0,61.02685]
[1617824687208,13.0777,1970.1,1970.0,67.41685]
[1617824687407,12.995,1970.9,1970.0,97.41685]
[1617824688306,12.995,1970.9,1970.0,99.41685]
[1617824688709,13.2353,1971.5,1970.0,99.41685]
[1617824688908,13.2353,1971.5,1971.1,2.90695]
[1617824689111,13.2353,1971.5,1971.1,67.03575]
[1617824689312,13.2353,1971.5,1971.2,6.22]
[1617824691116,13.2353,1971.5,1971.4,2.90695]
[1617824691315,13.2353,1971.5,1971.4,9.02695]
[1617824692922,16.14225,1971.5,1971.4,9.02695]
[1617824693522,2.90695,1971.5,1971.4,9.02695]
[1617824693923,13.9298,1972.7,1971.4,9.02695]
[1617824694222,13.9298,1972.7,1972.0,78.5986]
[1617824694625,13.9298,1972.7,1972.1,6.22]
[1617824695124,2.90695,1972.2,1972.1,6.22]
[1617824701034,2.90695,1972.2,1972.1,7.2324]
[1617824701234,0.38535,1972.2,1972.1,7.2324]
[1617824701534,0.38535,1972.2,1972.1,6.22]
[1617824701734,96.0653,1973.8,1972.1,6.22]
[1617824702134,16.0978,1973.8,1972.1,6.22]
[1617824702335,16.0978,1973.8,1972.7,70.0743]
[1617824702536,16.0978,1973.8,1972.7,72.5275]
[1617824702942,16.0978,1973.8,1972.8,6.17]
[1617824703238,16.0978,1973.8,1973.0,2.90695]
[1617824703738,16.0978,1973.8,1973.1,9.3591]
[1617824704837,13.5268,1973.8,1973.1,9.3591]
[1617824705137,13.5268,1973.8,1973.3,2.90695]
[1617824705640,13.5268,1973.8,1973.4,6.25]
[1617824707242,2.90695,1973.5,1973.4,6.25]
[1617824708346,2.90695,1973.5,1973.3,2.90695]
[1617824709149,2.90695,1973.5,1973.1,2.90695]
[1617824709850,2.90695,1973.5,1973.4,63.6139]
[1617824710249,2.90695,1973.5,1973.4,8.5794]
[1617824711851,2.90695,1973.5,1973.4,6.24]
[1617824712053,2.90695,1973.5,1973.4,8.9939]
[1617824714455,81.40095,1973.5,1973.4,8.9939]
[1617824714754,81.40095,1973.5,1973.4,2.7539]
[1617824714954,81.40095,1973.5,1973.3,2.90695]
[1617824715457,81.40095,1973.5,1973.4,6.17]
[1617824716360,2.90695,1973.5,1973.4,6.17]
[1617824720466,2.90695,1973.5,1973.3,2.90695]
[1617824720666,75.4069,1973.4,1973.3,2.90695]
[1617824721069,75.4069,1973.4,1971.4,2.0]
[1617824721371,103.8638,1973.5,1972.9,2.90695]
[1617824721567,103.8638,1973.5,1970.0,84.5499]
[1617824721568,83.2331,1972.9,1970.0,114.5499]
[1617824721767,86.0281,1972.9,1970.0,114.5499]
[1617824722167,86.0281,1972.9,1971.1,6.12]
[1617824722570,86.0281,1972.9,1971.1,6.1]
[1617824723271,86.0281,1972.9,1972.3,2.90695]
[1617824724072,116.0281,1972.9,1970.1,2.0]
[1617824724276,2.795,1972.9,1969.8,1.0231]
[1617824724576,81.3527,1971.5,1969.8,1.0231]
[1617824724771,81.3527,1971.5,1969.9,6.2]
[1617824725472,81.3527,1971.5,1971.4,2.90695]
[1617824726175,2.90695,1971.9,1971.4,4.91405]
[1617824726373,2.90695,1971.9,1971.4,11.06405]
[1617824727274,2.90695,1972.1,1971.8,2.90695]
[1617824727673,2.90695,1972.1,1971.9,6.18]
[1617824727875,2.90695,1972.1,1971.8,2.90695]
[1617824728077,2.90695,1972.1,1970.7,70.7411]
[1617824728078,83.9938,1971.8,1970.2,30.0]
[1617824728778,83.9938,1971.8,1970.3,6.11]
[1617824729075,83.9938,1971.8,1969.9,6.36]
[1617824729275,83.9938,1971.8,1970.0,30.0]
[1617824729475,83.9938,1971.8,1971.7,2.90695]
[1617824730576,30.0,1971.8,1969.7,2.0]
[1617824730775,30.0,1971.8,1969.3,31.0239]
[1617824731077,70.4996,1970.8,1969.9,6.33]
[1617824731488,73.40655,1970.8,1970.7,2.90695]
[1617824733581,75.40655,1970.8,1970.7,2.90695]
[1617824733980,75.40655,1970.8,1968.9,32.0]
[1617824734381,75.40655,1970.8,1968.6,1.0276]
[1617824734883,75.40655,1970.8,1969.0,6.32]
[1617824735085,75.40655,1970.8,1968.7,6.14]
[1617824735283,75.40655,1970.8,1969.1,6.3]
[1617824735482,102.4996,1970.8,1970.4,2.90695]
[1617824737087,102.4996,1970.8,1968.7,2.0]
[1617824737385,102.4996,1970.8,1969.8,2.90695]
[1617824737586,34.4413,1970.8,1969.8,2.90695]
[1617824738688,34.4413,1970.8,1968.2,1.0173]
[1617824738992,80.6787,1969.6,1968.2,1.0173]
[1617824739289,80.6787,1969.6,1968.4,78.9292]
[1617824739290,2.3264,1969.6,1968.4,78.9292]
[1617824739490,71.7173,1970.4,1969.5,2.90695]
[1617824739491,74.62425,1970.4,1969.5,2.90695]
[1617824739688,74.62425,1970.4,1969.5,5.69445]
[1617824739889,74.62425,1970.4,1969.6,3.55]
[1617824741496,74.62425,1970.4,1970.3,2.90695]
[1617824741693,2.90695,1970.4,1970.3,5.18695]
[1617824742992,27.4259,1970.7,1970.3,5.18695]
[1617824743193,27.4259,1970.7,1970.3,11.52695]
[1617824743601,27.4259,1970.7,1970.6,2.90695]
[1617824743913,13.6837,1970.7,1970.6,9.11695]
[1617824746397,2.90695,1971.5,1970.6,9.11695]
[1617824747703,2.90695,1971.5,1971.4,2.90695]
[1617824748505,2.90695,1971.5,1970.3,83.4208]
[1617824749206,2.90695,1971.5,1970.4,6.29]
[1617824749706,13.4052,1971.8,1971.4,4.94835]
[1617824749906,13.4052,1971.8,1971.4,11.32835]
[1617824751511,13.4052,1971.8,1971.7,2.90695]
[1617824751810,12.9488,1972.5,1971.7,2.90695]
[1617824752011,12.9488,1972.5,1971.7,9.17695]
[1617824753620,12.9488,1972.5,1972.4,2.90695]
[1617824753819,12.9488,1972.5,1972.4,5.96485]
[1617824754320,12.9488,1972.5,1971.2,78.1528]
[1617824754526,15.1574,1972.5,1971.3,30.0]
[1617824755020,15.1574,1972.5,1971.3,36.25]
[1617824755221,15.1574,1972.5,1971.3,30.0]
[1617824755621,15.1574,1972.5,1972.4,2.90695]
[1617824755822,12.9488,1972.5,1972.4,2.90695]
[1617824756023,12.9488,1972.5,1972.4,9.15695]
[1617824756324,12.9488,1972.5,1972.4,12.09785]
[1617824762036,2.90695,1973.3,1972.4,42.09785]
[1617824762238,2.90695,1973.3,1972.5,80.7919]
[1617824762440,2.90695,1973.3,1972.5,110.7919]
[1617824762637,2.90695,1973.3,1972.6,6.16]
[1617824763639,2.90695,1973.3,1973.2,2.90695]
[1617824764040,2.90695,1973.3,1973.2,5.45555]
[1617824764239,2.90695,1973.3,1973.2,11.56555]
[1617824765743,2.90695,1973.5,1973.2,11.56555]
[1617824767744,2.90695,1973.5,1973.4,2.90695]
[1617824768248,2.90695,1973.5,1973.4,9.16695]
[1617824769746,2.90695,1974.0,1973.4,9.16695]
[1617824770647,2.90695,1974.0,1973.4,74.02025]
[1617824771750,2.90695,1974.0,1973.9,2.90695]
[1617824771949,2.90695,1974.0,1973.9,5.82465]
[1617824772151,2.90695,1974.0,1973.9,12.19465]
[1617824772951,1.90615,1974.0,1973.9,12.19465]
[1617824773759,14.0889,1974.1,1973.9,12.19465]
[1617824774162,2.0,1975.8,1974.1,60.937]
[1617824774358,13.525,1975.6,1974.1,60.937]
[1617824774561,13.525,1975.6,1974.2,6.34]
[1617824774759,13.525,1975.6,1974.2,6.33]
[1617824775860,13.525,1975.6,1975.2,5.46675]
[1617824776159,13.525,1975.6,1975.3,6.31]
[1617824777462,13.525,1975.6,1975.2,5.46675]
[1617824777865,2.90695,1975.3,1975.2,5.46675]
[1617824779872,2.90695,1975.3,1975.2,2.5598]
[1617824781174,2.90695,1975.3,1974.9,2.90695]
[1617824781775,2.90695,1975.3,1975.2,2.90695]
[1617824781974,2.90695,1975.3,1975.2,5.16445]
[1617824782174,2.90695,1975.3,1975.2,11.39445]
[1617824785177,2.90695,1975.3,1974.0,0.9979]
[1617824785494,80.7832,1974.9,1973.5,2.0]
[1617824785881,80.7832,1974.9,1974.8,2.90695]
[1617824786075,80.7832,1974.9,1974.8,9.16695]
[1617824786677,80.7832,1974.9,1974.8,2.90695]
[1617824786977,80.7832,1974.9,1973.4,0.9999]
[1617824787477,80.7832,1974.9,1972.3,30.0]
[1617824787679,82.7832,1974.9,1973.5,6.3]
[1617824787877,82.7832,1974.9,1972.3,30.0]
[1617824787878,4.5231,1974.9,1974.3,2.90695]
[1617824788286,13.525,1975.6,1974.4,3.58]
[1617824788682,13.525,1975.6,1974.4,33.58]
[1617824789180,13.525,1975.6,1974.9,68.8998]
[1617824789483,13.525,1975.6,1974.9,72.0926]
[1617824789681,30.0,1977.0,1975.0,6.35]
[1617824789889,66.80305,1975.6,1975.5,2.90695]
[1617824790081,12.9093,1977.5,1975.5,9.06695]
[1617824790580,12.9093,1977.5,1975.7,77.1637]
[1617824790781,12.9093,1977.5,1975.7,79.5713]
[1617824791082,12.9093,1977.5,1975.8,6.27]
[1617824791282,14.9093,1977.5,1975.8,6.27]
[1617824791884,2.90695,1976.4,1976.2,5.97245]
[1617824792185,12.9093,1977.5,1976.2,12.12245]
[1617824792384,13.6658,1976.3,1976.2,12.12245]
[1617824792585,12.9093,1977.5,1976.2,12.12245]
[1617824792888,12.9093,1977.5,1977.0,65.5067]
[1617824793085,12.9093,1977.5,1977.1,6.12]
[1617824793788,12.9093,1977.5,1977.4,2.90695]
[1617824794187,12.9093,1977.5,1977.4,5.43395]
[1617824794387,12.9093,1977.5,1977.4,11.71395]
[1617824796691,11.0941,1977.5,1977.4,11.71395]
[1617824796894,10.5892,1977.5,1977.4,11.71395]
[1617824797091,3.571,1979.2,1977.5,75.2272]
[1617824797390,3.571,1979.2,1977.6,6.06]
[1617824797790,3.571,1979.2,1978.2,2.90695]
[1617824797993,3.571,1979.2,1977.6,6.06]
[1617824798195,3.571,1979.2,1977.5,75.2272]
[1617824798392,30.0,1979.1,1977.5,75.2272]
[1617824798594,30.0,1979.1,1971.9,4.89595494]
[1617824798892,71.3852,1978.3,1975.8,64.0761]
[1617824799094,30.0,1978.2,1975.8,64.0761]
[1617824799293,30.0,1978.2,1975.9,6.09]
[1617824799894,32.0,1978.2,1976.9,2.90695]
[1617824801196,32.0,1978.2,1975.8,64.0761]
[1617824801797,32.0,1978.2,1975.9,6.27]
[1617824802596,30.0,1978.2,1975.9,6.27]
[1617824802897,30.0,1978.2,1975.9,36.27]
[1617824803097,68.8062,1978.3,1975.9,36.27]
[1617824803997,68.8062,1978.3,1977.5,2.90695]
[1617824804199,68.8062,1978.3,1977.5,5.12845]
[1617824804401,68.8062,1978.3,1977.6,6.11]
[1617824805909,68.8062,1978.3,1977.9,2.90695]
[1617824806205,68.8062,1978.3,1977.9,4.92315]
[1617824807307,68.8062,1978.3,1977.9,2.90695]
[1617824807909,2.90695,1978.0,1977.9,2.90695]
[1617824809308,68.8062,1978.3,1977.9,2.90695]
[1617824809909,2.90695,1978.0,1977.9,2.90695]
[1617824810508,5.45125,1978.0,1976.4,31.0088]
[1617824810709,5.45125,1978.0,1975.2,3.0075]
[1617824810916,5.45125,1978.0,1975.9,30.0]
[1617824811312,5.45125,1978.0,1975.9,36.33]
[1617824811812,2.90695,1978.0,1975.9,36.33]
[1617824812011,12.7317,1978.2,1977.9,2.90695]
[1617824812314,12.7317,1978.2,1976.5,2.393]
[1617824812911,12.7317,1978.2,1976.6,6.09]
[1617824813714,12.7317,1978.2,1976.6,8.5158]
[1617824813917,12.7317,1978.2,1977.6,2.90695]
[1617824814116,81.5471,1977.6,1976.5,6.17]
[1617824814315,81.5471,1977.6,1975.0,79.4206]
[1617824814316,83.8399,1977.6,1976.7,6.24]
[1617824814516,32.2928,1977.6,1976.7,6.24]
[1617824814715,68.0741,1976.8,1975.9,6.35]
[1617824814917,71.1691,1976.8,1975.9,6.35]
[1617824815515,71.1691,1976.8,1975.3,6.2]
[1617824815816,68.0741,1976.8,1976.0,6.31]
[1617824816016,68.0741,1976.8,1976.7,2.90695]
[1617824816717,68.0741,1976.8,1976.7,2.94695]
[1617824823424,69.9505,1976.8,1976.7,2.94695]
[1617824823623,69.9505,1976.8,1976.7,2.90695]
[1617824823923,1.8764,1976.8,1975.2,1.0075]
[1617824824126,1.8764,1976.8,1976.3,2.90695]
[1617824824726,1.8764,1976.8,1975.2,1.0075]
[1617824824928,77.8446,1975.5,1975.2,1.0075]
[1617824825126,79.9928,1975.5,1974.7,1.0002]
[1617824825627,79.9928,1975.5,1974.8,6.12]
[1617824826028,79.9928,1975.5,1975.4,2.90695]
[1617824827928,77.8446,1975.5,1975.4,2.90695]
[1617824830138,77.8446,1975.5,1974.0,1.0228]
[1617824830336,80.1394,1975.5,1974.0,1.0228]
[1617824830535,80.1394,1975.5,1973.7,1.0215]
[1617824830936,80.1394,1975.5,1974.1,6.3]
[1617824831136,2.2948,1975.5,1973.8,6.11]
[1617824831337,60.5617,1974.4,1973.7,1.0215]
[1617824831536,60.5617,1974.4,1973.8,6.17]
[1617824831739,63.0245,1974.4,1973.8,6.17]
[1617824832240,63.0245,1974.4,1974.1,2.90695]
[1617824832438,2.4628,1974.4,1974.1,2.90695]
[1617824832840,30.0,1974.3,1974.1,2.90695]
[1617824833038,2.4628,1974.4,1974.1,2.90695]
[1617824834142,2.90695,1974.2,1974.1,2.90695]
[1617824834645,2.90695,1974.2,1974.1,5e-05]
[1617824836244,76.9203,1974.1,1973.9,2.90695]
[1617824836443,2.90695,1974.2,1973.9,2.90695]
[1617824836644,2.90695,1974.2,1973.9,5.20885]
[1617824836947,2.90695,1974.2,1974.0,6.15]
[1617824838250,2.90695,1974.4,1974.1,2.90695]
[1617824838547,2.90695,1974.4,1974.2,6.34]
[1617824840148,2.90695,1974.4,1974.3,2.90695]
[1617824840348,2.90695,1974.4,1974.3,4.90685]
[1617824840548,2.90695,1974.4,1974.3,11.11685]
[1617824841149,2.90695,1974.4,1974.3,4.90685]
[1617824841650,2.90695,1974.4,1974.3,11.22685]
[1617824843855,76.8658,1974.9,1974.3,11.22685]
[1617824844355,76.8658,1974.9,1974.7,2.90695]
[1617824845557,76.8658,1974.9,1974.8,6.2]
[1617824845757,76.8658,1974.9,1974.8,8.6063]
[1617824846258,79.77275,1974.9,1974.8,8.6063]
[1617824846760,76.8658,1974.9,1974.8,8.6063]
[1617824847561,76.8658,1974.9,1974.7,2.90695]
[1617824848267,2.90695,1974.8,1974.7,2.90695]
[1617824848565,6.13515,1974.8,1974.7,2.90695]
[1617824848765,5.11875,1974.8,1974.7,2.90695]
[1617824848966,5.11875,1974.8,1972.8,32.0]
[1617824849866,35.11875,1974.8,1973.0,6.16]
[1617824850370,32.2118,1974.8,1973.9,2.90695]
[1617824850567,32.2118,1974.8,1974.0,6.22]
[1617824850867,32.2118,1974.8,1973.9,2.90695]
[1617824852270,2.2118,1974.8,1974.4,2.90695]
[1617824852569,2.2118,1974.8,1972.3,32.0]
[1617824852974,2.2118,1974.8,1973.0,6.19]
[1617824853670,106.8658,1974.9,1973.0,6.19]
[1617824854171,76.8658,1974.9,1973.9,2.90695]
[1617824854574,76.8658,1974.9,1974.0,6.24]
[1617824854972,76.8658,1974.9,1973.9,2.90695]
[1617824855674,76.8658,1974.9,1974.0,6.2]
[1617824855881,76.8658,1974.9,1974.0,8.9679]
[1617824856377,76.8658,1974.9,1974.6,2.90695]
[1617824856589,76.8658,1974.9,1974.6,4.91445]
[1617824856776,76.8658,1974.9,1974.7,6.33]
[1617824857578,13.2883,1975.3,1974.7,6.33]